[Event "3rd ESNAI-ch 2018"]
[Site "Klaksvik"]
[Date "2018.04.20"]
[Round "7"]
[White "Frick, Renato"]
[Black "Berend, Fred"]
[Result "0-1"]
[ECO "B30"]
[WhiteElo "2062"]
[BlackElo "2357"]
[Annotator "NA RC"]
[PlyCount "154"]
[EventDate "2018.??.??"]
[EventType "tourn"]
[EventCountry "FAI"]
[SourceTitle "playchess.com"]
[Source "ChessBase"]
[SourceQuality "1"]
[TimeControl "40/5400+30:1800+30"]

1. e4 {[%emt 0:00:00]} c5 {[%emt 0:00:08]} 2. Nf3 {[%emt 0:00:00]} Nc6 {[%emt 0:00:03]} 3. Bb5 {[%emt 0:00:00]} d6 {[%emt 0:00:11]} 4. Nc3 {[%emt 0:00:42]} Bd7 {[%emt 0:00:10]} 5. d4 {[%emt 0:01:57]} cxd4 {[%emt 0:00:50]} 6. Nxd4 {[%emt 0:00:09] LiveBook: 12 Games} a6 {[%emt 0:01:06] B54: Sicilian: 2...d6 3 d4 cxd4 4 Nxd4, Unusual Lines} (6... g6 7. O-O Bg7 8. Be3 Nf6 9. Be2 O-O 10. f4 a6 11. Kh1 b5 12. Bf3 Rc8 13. Nxc6 Bxc6 14. Nd5 Nxd5 15. exd5 Bd7 16. c3 b4 17. cxb4 Bxb2 {0-1 (41) Lianes Garcia,M (2350)-Georgiev,K (2627) Roquetas de Mar 2017}) 7. Nxc6 {[%emt 0:07:42]} bxc6 {[%emt 0:00:57]} 8. Bd3 {[%emt 0:00:46]} g6 {[%emt 0:00:33]} 9. O-O {[%emt 0:00:57]} Bg7 {[%emt 0:00:06]} 10. Bd2 {[%emt 0:05:32]} Nf6 $146 {[%emt 0:00:27]} ({Predecessor:} 10... e6 11. f4 Ne7 12. Rf3 O-O 13. Qf1 f5 14. Rb1 fxe4 15. Nxe4 {0-1 (56) Senger,A-Behr,R Heimbach Weis 2002}) 11. Rb1 {[%emt 0:00:38]} O-O {[%emt 0:00:28]} 12. Qe2 {[%emt 0:00:19]} Bg4 {[%emt 0:04:55]} 13. f3 {[%emt 0:09:07]} Be6 {[%emt 0:02:19]} 14. b3 {[%emt 0:04:59]} Nd7 {[%emt 0:04:29]} 15. Na4 {[%emt 0:04:12]} Qc7 {[%emt 0:06:03]} 16. Be3 {[%emt 0:03:39]} a5 {[%emt 0:04:22]} 17. c4 {[%emt 0:04:15]} c5 {[%emt 0:03:41]} 18. Qd2 {[%emt 0:02:58]} Ne5 {[%emt 0:04:41]} 19. Bc2 {[%emt 0:04:11]} (19. Be2 $11) 19... Nc6 {[%emt 0:00:35]} 20. Nc3 {[%emt 0:00:15]} Nd4 {[%emt 0:09:35]} 21. Bd1 {[%emt 0:02:34]} Bd7 {[%emt 0:07:19]} 22. a4 {[%emt 0:07:03]} Qb6 {[%emt 0:03:14]} 23. Nd5 {[%emt 0:03:13]} Qd8 {[%emt 0:00:05]} 24. Nc3 {[%emt 0:00:08]} Bc6 {[%emt 0:01:09]} 25. Nb5 {[%emt 0:02:53]} Qb6 {[%emt 0:01:26]} 26. Bh6 {[%emt 0:03:33]} Bxh6 {[%emt 0:04:59]} 27. Qxh6 {[%emt 0:00:43]} f6 {[%emt 0:00:14]} 28. Qe3 {[%emt 0:04:36]} Rad8 {[%emt 0:02:00]} 29. Rb2 {[%emt 0:04:02]} Rd7 {[%emt 0:01:37]} 30. Rd2 {[%emt 0:00:53] e} e5 {[%emt 0:00:36]} 31. Bc2 {[%emt 0:07:44]} Qd8 {[%emt 0:00:16]} 32. Bb1 {[%emt 0:04:10]} Rg7 {[%emt 0:01:46]} 33. Kh1 {[%emt 0:02:22]} Kh8 {[%emt 0:05:43] g} 34. g4 {[%emt 0:01:02]} (34. Qe1 $15) 34... Be8 {[%emt 0:10:41]} 35. Rg2 {[%emt 0:02:39]} Qe7 {[%emt 0:00:39]} (35... g5 $17) 36. Qc3 {[%emt 0:02:03]} Qd8 {[%emt 0:00:25]} 37. Qe3 {[%emt 0:00:12]} Kg8 {[%emt 0:00:55]} 38. Rfg1 {[%emt 0:00:19]} Bc6 {[%emt 0:00:51]} 39. Rg3 {[%emt 0:01:43]} Kf7 {[%emt 0:00:49]} 40. Qd3 {[%emt 0:00:00]} Ke8 {[%emt 0:01:45] Qe} 41. Qe3 {[%emt 0:05:33]} Kd7 {[%emt 0:03:17]} ({Better is} 41... h5 $17) 42. R1g2 {[%emt 0:06:15]} Rgf7 {[%emt 0:01:31]} 43. Rd2 {[%emt 0:03:35]} Kc8 {[%emt 0:01:46]} 44. Kg1 {[%emt 0:07:00]} Rh8 {[%emt 0:00:18]} 45. f4 {[%emt 0:03:48] [#]} g5 $1 {[%emt 0:01:24]} 46. f5 {[%emt 0:05:32]} h5 {[%emt 0:00:18]} 47. h3 {[%emt 0:03:23]} Rfh7 {[%emt 0:00:17]} 48. gxh5 {[%emt 0:00:26]} Bxb5 {[%emt 0:00:11]} 49. axb5 {[%emt 0:00:19]} Rxh5 {[%emt 0:00:22]} 50. Bd3 {[%emt 0:01:00]} Rh4 {[%emt 0:05:51]} 51. Bf1 {[%emt 0:00:23]} R8h7 {[%emt 0:00:13]} 52. Ra2 {[%emt 0:00:36]} Rf4 {[%emt 0:00:53]} 53. Bg2 {[%emt 0:00:42]} Ra7 {[%emt 0:00:23]} 54. Qd3 {[%emt 0:00:56]} Kc7 {[%emt 0:00:32]} 55. Rg4 {[%emt 0:02:25]} Kb6 {[%emt 0:00:56]} 56. Qe3 {[%emt 0:00:38]} Qa8 {[%emt 0:00:34]} 57. Qe1 {[%emt 0:00:17]} (57. Rg3 $15) 57... Rf3 {[%emt 0:10:59]} 58. Rg3 {[%emt 0:00:55]} Rxb3 {[%emt 0:00:36]} 59. Rxb3 {[%emt 0:00:26]} Nxb3 {[%emt 0:00:05]} 60. Qd1 {[%emt 0:00:06]} Nd4 {[%emt 0:00:28]} 61. Qh5 {[%emt 0:00:01]} a4 {[%emt 0:03:51]} 62. Ra3 {[%emt 0:00:07]} Qg8 {[%emt 0:01:49]} 63. Qd1 {[%emt 0:00:06]} Qxc4 {[%emt 0:00:37]} 64. Bf1 {[%emt 0:00:08]} Qc2 {[%emt 0:01:07] Qh} 65. Qh5 {[%emt 0:00:36]} Qxe4 {[%emt 0:04:55]} 66. Qe8 {[%emt 0:01:37]} Qa8 {[%emt 0:00:25]} 67. Qg6 {[%emt 0:00:24] Qf} Qf8 {[%emt 0:01:10]} 68. Bc4 {[%emt 0:00:20]} Ka5 {[%emt 0:00:53]} 69. Qh5 {[%emt 0:00:43]} g4 {[%emt 0:00:21]} 70. hxg4 {[%emt 0:01:32]} Kb4 {[%emt 0:01:08]} 71. Qh3 {[%emt 0:00:56]} Kxc4 {[%emt 0:00:18]} 72. Qd3+ {[%emt 0:00:12]} Kd5 {[%emt 0:01:14]} 73. b6 {[%emt 0:00:19]} Ra5 {[%emt 0:00:41]} 74. Qd2 {[%emt 0:00:20]} Rb5 {[%emt 0:00:29]} 75. Qg2+ {[%emt 0:00:37]} e4 {[%emt 0:00:20]} 76. Qa2+ {[%emt 0:00:05]} Kc6 {[%emt 0:01:04]} 77. Rxa4 {[%emt 0:00:21] Q} Qh6 {[%emt 0:01:14]} 0-1

[Event "3rd ESNAI-ch 2018"]
[Site "Klaksvik"]
[Date "2018.04.20"]
[Round "7"]
[White "Kirby, Peter J"]
[Black "Belzo, Krzysztof"]
[Result "1/2-1/2"]
[ECO "B38"]
[WhiteElo "1985"]
[BlackElo "2103"]
[Annotator "NA"]
[PlyCount "58"]
[EventDate "2018.??.??"]
[EventType "tourn"]
[EventCountry "FAI"]
[SourceTitle "playchess.com"]
[Source "ChessBase"]
[SourceQuality "1"]
[TimeControl "40/5400+30:1800+30"]

1. e4 {[%emt 0:00:00]} g6 {[%emt 0:00:34]} 2. d4 {[%emt 0:00:00]} Bg7 {[%emt 0:00:04]} 3. Nf3 {[%emt 0:00:00]} c5 {[%emt 0:00:25]} 4. c4 {[%emt 0:00:24]} cxd4 {[%emt 0:03:40]} 5. Nxd4 {[%emt 0:00:07]} Nc6 {[%emt 0:00:42]} 6. Be3 {[%emt 0:00:27]} d6 {[%emt 0:00:09]} 7. Nc3 {[%emt 0:01:05]} Nf6 {[%emt 0:00:05]} 8. Be2 {[%emt 0:00:23]} Bd7 {[%emt 0:00:38]} 9. O-O {[%emt 0:00:39]} O-O {[%emt 0:00:49]} 10. Qd2 {[%emt 0:00:27]} Nxd4 {[%emt 0:02:57]} 11. Bxd4 {[%emt 0:00:08]} Bc6 {[%emt 0:00:02]} 12. f3 {[%emt 0:00:19]} a5 {[%emt 0:00:34]} 13. b3 {[%emt 0:03:40]} Nd7 {[%emt 0:00:04]} 14. Be3 {[%emt 0:00:19]} Nc5 {[%emt 0:00:12]} 15. Rab1 {[%emt 0:00:14]} Qb6 $14 {[%emt 0:02:44] LiveBook: 637 Games} 16. Rfc1 {[%emt 0:01:07]} Rfc8 {[%emt 0:01:29]} 17. Rc2 {[%emt 0:00:44]} Qd8 {[%emt 0:04:44]} 18. Bf1 {[%emt 0:00:15]} h5 {[%emt 0:00:32]} 19. Nd5 Bxd5 {[%emt 0:11:49]} 20. exd5 {[%emt 0:10:40]} Kh7 {[%emt 0:03:53]} 21. Re1 {[%emt 0:10:12]} Qf8 {[%emt 0:16:02]} 22. Qf2 Bf6 {[%emt 0:05:29]} 23. Rd1 {[%emt 0:07:08]} Qg7 {[%emt 0:03:50]} 24. Qd2 Rc7 {[%emt 0:04:49]} 25. g3 {[%emt 0:02:25]} b6 {[%emt 0:01:42]} 26. Kh1 {[%emt 0:04:06]} Qf8 {[%emt 0:00:30]} 27. Bd3 {[%emt 0:02:30]} Bg7 {[%emt 0:00:30]} 28. Kg2 {[%emt 0:00:58]} Bh6 {[%emt 0:01:07]} 29. f4 {[%emt 0:00:30]} f5 {[%emt 0:00:32]} 1/2-1/2

[Event "3rd ESNAI-ch 2018"]
[Site "Klaksvik"]
[Date "2018.04.21"]
[Round "8"]
[White "Berg, Olaf"]
[Black "Frick, Renato"]
[Result "1-0"]
[ECO "E61"]
[WhiteElo "2235"]
[BlackElo "2062"]
[Annotator "NA"]
[PlyCount "51"]
[EventDate "2018.??.??"]
[EventType "tourn"]
[EventCountry "FAI"]
[SourceTitle "playchess.com"]
[Source "ChessBase"]
[SourceQuality "1"]
[TimeControl "40/5400+30:1800+30"]

1. d4 {[%emt 0:01:19]} Nf6 {[%emt 0:00:13]} 2. Nf3 {[%emt 0:00:13]} g6 {[%emt 0:00:11]} 3. c4 {[%emt 0:01:09]} Bg7 {[%emt 0:00:22]} 4. Nc3 {[%emt 0:01:51]} d6 {[%emt 0:00:22]} 5. Bg5 {[%emt 0:06:56]} Nbd7 {[%emt 0:01:29]} 6. h3 {[%emt 0:01:41] E61: King's Indian: Early deviations for White, including Smyslov System} (6. e3 h6 7. Bh4 g5 8. Bg3 Nh5 9. Bd3 e6 10. Nd2 Ndf6 11. Qb3 b6 12. O-O-O Bb7 13. f3 Nxg3 14. hxg3 Qe7 15. Nde4 Nxe4 16. Bxe4 c6 {0-1 (54) Tran,T (2538)-Van Foreest,J (2616) Tarvisio 2017}) 6... O-O {[%emt 0:06:49] LiveBook: 14 Games} 7. Qd2 {[%emt 0:05:26]} c5 {[%emt 0:05:09]} 8. d5 {[%emt 0:01:34]} Ne5 {[%emt 0:03:04]} 9. Nxe5 {[%emt 0:00:51]} dxe5 {[%emt 0:00:07]} 10. e4 {[%emt 0:07:06]} Ne8 {[%emt 0:01:02]} 11. h4 $146 {[%emt 0:05:30]} ({Find the theoretical novelty and annotate with similar games:} 11. O-O-O Nd6 12. g4 a6 13. Kb1 Bd7 14. f3 {0-1 (54) Niemela,T-Juurikainen,J Finland 2000}) 11... h5 {[%emt 0:06:00]} 12. f3 {[%emt 0:03:43]} f6 {[%emt 0:13:49]} 13. Be3 {[%emt 0:05:34]} b6 {[%emt 0:01:28]} 14. g4 {[%emt 0:01:32]} hxg4 {[%emt 0:01:00]} 15. h5 {[%emt 0:00:41]} gxh5 {[%emt 0:00:21]} 16. Rxh5 {[%emt 0:00:34]} Nd6 {[%emt 0:00:57]} ({Weaker is} 16... gxf3 17. O-O-O $15) 17. Bh6 {[%emt 0:01:23]} Nf7 {[%emt 0:00:27]} 18. Be3 {[%emt 0:05:55]} gxf3 {[%emt 0:17:10]} 19. O-O-O {[%emt 0:05:03]} Bg4 {[%emt 0:06:11]} 20. Rh4 {[%emt 0:00:40]} Qd7 {[%emt 0:01:31]} 21. Bd3 $18 {[%emt 0:07:06]} f2 {[%emt 0:04:39]} 22. Rdh1 {[%emt 0:06:02]} f5 {[%emt 0:01:21]} 23. Qxf2 {[%emt 0:12:39]} fxe4 {[%emt 0:10:11]} 24. Qg2 {[%emt 0:02:01]} Bf3 {[%emt 0:05:59]} 25. Qg6 {[%emt 0:00:50]} Rfe8 {[%emt 0:03:13]} 26. Rh7 {[%emt 0:00:30]} 1-0

[Event "3rd ESNAI-ch 2018"]
[Site "Klaksvik"]
[Date "2018.04.21"]
[Round "8"]
[White "Belzo, Krzysztof"]
[Black "Theocharous, Stelios"]
[Result "1-0"]
[ECO "A20"]
[WhiteElo "2103"]
[BlackElo "2099"]
[Annotator "NA"]
[PlyCount "59"]
[EventDate "2018.??.??"]
[EventType "tourn"]
[EventCountry "FAI"]
[SourceTitle "playchess.com"]
[Source "ChessBase"]
[SourceQuality "1"]
[TimeControl "40/5400+30:1800+30"]

1. c4 e5 2. g3 Nf6 3. Bg2 d5 4. cxd5 Nxd5 5. Nc3 Nb6 6. e3 c5 7. Nge2 Nc6 8. O-O Be7 9. f4 O-O 10. f5 g6 11. g4 Bh4 12. Ne4 Nd5 13. Nxc5 b6 14. Qa4 Ncb4 15. a3 bxc5 16. axb4 Bd7 17. Qa5 Qg5 18. Qxc5 Nf6 19. Qxe5 Qxg4 20. Qf4 Qxe2 21. Qxh4 Kg7 22. b3 Rab8 23. Bb2 Rb6 24. fxg6 fxg6 25. Bd4 Qxd2 26. Rxa7 Rd6 27. Qf4 Rxd4 28. Qxd4 Qxd4 29. exd4 Rb8 30. Rxf6 1-0

[Event "3rd ESNAI-ch 2018"]
[Site "Klaksvik"]
[Date "2018.04.22"]
[Round "9"]
[White "Berend, Fred"]
[Black "Berg, Olaf"]
[Result "1-0"]
[ECO "A40"]
[WhiteElo "2357"]
[BlackElo "2235"]
[Annotator "NA"]
[PlyCount "39"]
[EventDate "2018.??.??"]
[EventType "tourn"]
[EventCountry "FAI"]
[SourceTitle "playchess.com"]
[Source "ChessBase"]
[SourceQuality "1"]
[TimeControl "40/5400+30:1800+30"]

{[%evp 12,39,28,-7,26,32767,32767,32767,32767,38,51,45,51,39,32767,32767,32767,169,170,206,266,275,558,597,777,32767,788,775,1037,931]} 1. d4 {[%emt 0:00:00]} Nf6 {[%emt 0:00:22]} 2. c4 {[%emt 0:00:00]} e6 {[%emt 0:00:47]} 3. g3 {[%emt 0:00:00]} c5 {[%emt 0:00:50]} 4. Nf3 {[%emt 0:00:00]} cxd4 {[%emt 0:00:42]} 5. Nxd4 {[%emt 0:00:00]} Nc6 {[%emt 0:01:26]} 6. Bg2 {[%emt 0:00:21]} Qb6 {[%emt 0:06:36]} 7. Nb3 {[%emt 0:02:17] LiveBook: 76 Games} Qb4+ {[%emt 0:03:56]} 8. N3d2 {[%emt 0:04:04]} d5 {[%emt 0:00:57]} 9. a3 {[%emt 0:01:07]} Qa5 {[%emt 0:01:38]} 10. O-O {[%emt 0:01:35]} Be7 {[%emt 0:10:30]} 11. b4 {[%emt 0:02:35]} Qc7 {[%emt 0:04:27]} 12. Nc3 {[%emt 0:12:09]} dxc4 {[%emt 0:05:39]} 13. Nxc4 {[%emt 0:11:50]} Nxb4 {[%emt 0:06:07]} 14. Qb3 {[%emt 0:00:37]} Nbd5 {[%emt 0:10:39] [#]} 15. Nb5 $1 {[%emt 0:00:37]} Qc5 {[%emt 0:05:29] [#]} 16. a4 $1 {[%emt 0:01:09]} Qc6 $2 {[%emt 0:17:49] Ba} (16... O-O {might work better.} 17. Ba3 Nb4) 17. Ba3 {[%emt 0:01:40]} Bd7 {[%emt 0:20:15]} 18. Bxe7 {[%emt 0:02:55]} Kxe7 {[%emt 0:00:29]} 19. Qa3+ {[%emt 0:00:23]} Ke8 {[%emt 0:00:50]} 20. Rac1 $18 {[%emt 0:02:06]} 1-0

[Event "3rd ESNAI-ch 2018"]
[Site "Klaksvik"]
[Date "2018.04.22"]
[Round "9"]
[White "Frick, Renato"]
[Black "Belzo, Krzysztof"]
[Result "1-0"]
[ECO "B35"]
[WhiteElo "2062"]
[BlackElo "2103"]
[Annotator "NA"]
[PlyCount "65"]
[EventDate "2018.??.??"]
[EventType "tourn"]
[EventCountry "FAI"]
[SourceTitle "playchess.com"]
[Source "ChessBase"]
[SourceQuality "1"]
[TimeControl "40/5400+30:1800+30"]

1. e4 {[%emt 0:00:00]} g6 {[%emt 0:00:06]} 2. d4 {[%emt 0:00:00]} Bg7 {[%emt 0:00:03]} 3. Nc3 {[%emt 0:00:00]} c5 {[%emt 0:00:06]} 4. Nf3 {[%emt 0:00:06]} cxd4 {[%emt 0:00:33] LiveBook: 764 Games} 5. Nxd4 {[%emt 0:00:11]} Nc6 {[%emt 0:00:16]} 6. Be3 {[%emt 0:00:06]} Nf6 {[%emt 0:00:38]} 7. Bc4 {[%emt 0:02:28]} O-O {[%emt 0:00:13]} 8. Bb3 {[%emt 0:00:09]} d6 {[%emt 0:00:31]} 9. f3 {[%emt 0:00:12]} Bd7 {[%emt 0:00:07]} 10. Qd2 {[%emt 0:00:11]} Nxd4 {[%emt 0:02:53]} 11. Bxd4 {[%emt 0:00:17]} b5 {[%emt 0:00:02]} 12. h4 {[%emt 0:01:01]} a5 {[%emt 0:00:25]} 13. a4 {[%emt 0:04:23]} b4 {[%emt 0:05:40] B77: Sicilian Dragon: Yugoslav Attack, 9 Bc4 sidelines} (13... bxa4 14. Nxa4 h5 15. Nb6 Ra6 16. Nxd7 Nxd7 17. Bxg7 Kxg7 18. Bc4 Ra8 19. Qd4+ {½-½ (19) Vachier Lagrave,M (2795)-Radjabov,T (2710) Moscow 2017}) 14. Nd5 {[%emt 0:02:10]} e6 {[%emt 0:24:01]} ({Black should play} 14... Nxd5 $14 15. Bxg7 Kxg7 16. Bxd5 Rc8) 15. Nxf6+ {[%emt 0:32:56]} Bxf6 {[%emt 0:00:07]} 16. Bxf6 {[%emt 0:06:47]} Qxf6 {[%emt 0:00:02]} 17. O-O-O {[%emt 0:00:11]} Rad8 $146 {[%emt 0:17:08]} ({Predecessor:} 17... Rfd8 18. Qg5 Qxg5+ 19. hxg5 Bc6 20. Rd4 Rd7 21. Kd2 Kg7 22. Ke3 Re8 23. Re1 d5 24. e5 Rb7 25. Rh4 Bd7 26. Reh1 Rh8 27. g4 Rc7 28. R1h2 {½-½ (28) Minic,D-Plater,K Polanica Zdroj 1963}) 18. Qe3 {[%emt 0:00:40]} Qe5 {[%emt 0:07:55] [#]} 19. Rd3 {[%emt 0:05:06]} (19. h5 $142 $1 {[%mdl 512]}) 19... Bc6 {[%emt 0:05:33]} 20. Rhd1 {[%emt 0:00:49]} Rd7 {[%emt 0:01:01]} 21. Qb6 {[%emt 0:02:57]} Rc8 {[%emt 0:00:27]} 22. Qe3 {[%emt 0:04:55]} (22. Rd4 $16) 22... Rcd8 {[%emt 0:03:43]} 23. Kb1 {[%emt 0:01:29]} Kg7 $11 {[%emt 0:08:37]} 24. Qb6 {[%emt 0:06:48]} Rc8 {[%emt 0:01:03]} 25. g4 {[%emt 0:03:52]} h6 {[%emt 0:05:03]} 26. Qe3 {[%emt 0:01:59]} Rcd8 {[%emt 0:00:36]} 27. Ka2 {[%emt 0:03:56]} Kh7 {[%emt 0:03:46]} 28. Qb6 {[%emt 0:00:57]} Rc8 {[%emt 0:01:40]} 29. c4 {[%emt 0:04:05]} bxc3 {[%emt 0:07:50]} 30. Rxc3 {[%emt 0:00:17]} Rb7 {[%emt 0:00:36]} 31. Qd4 {[%emt 0:00:57]} Bd7 {[%emt 0:03:20]} 32. Qxe5 {[%emt 0:00:26]} dxe5 {[%emt 0:00:01]} 33. Rxd7 {[%emt 0:00:09]} 1-0

[Event "3rd ESNAI-ch 2018"]
[Site "Klaksvik"]
[Date "2018.04.22"]
[Round "9"]
[White "Kirby, Peter J"]
[Black "Klerides, Paris"]
[Result "0-1"]
[ECO "E69"]
[WhiteElo "1985"]
[BlackElo "2183"]
[Annotator "NA"]
[PlyCount "198"]
[EventDate "2018.??.??"]
[EventType "tourn"]
[EventCountry "FAI"]
[SourceTitle "playchess.com"]
[Source "ChessBase"]
[SourceQuality "1"]
[TimeControl "40/5400+30:1800+30"]

1. Nf3 {[%emt 0:00:00]} Nf6 {[%emt 0:00:23]} 2. c4 {[%emt 0:00:00]} g6 {[%emt 0:00:24]} 3. g3 {[%emt 0:00:25]} Bg7 {[%emt 0:00:01]} 4. Bg2 {[%emt 0:00:06]} O-O {[%emt 0:00:05]} 5. O-O {[%emt 0:00:20]} d6 {[%emt 0:00:02]} 6. d4 {[%emt 0:00:12]} Nbd7 {[%emt 0:00:15]} 7. Nc3 {[%emt 0:00:10]} e5 {[%emt 0:00:10]} 8. e4 {[%emt 0:00:04]} c6 {[%emt 0:00:09]} 9. h3 {[%emt 0:00:12]} Qb6 {[%emt 0:00:23]} 10. Re1 {[%emt 0:00:23]} Re8 {[%emt 0:02:45]} 11. d5 {[%emt 0:00:06]} Nc5 {[%emt 0:01:23] E69: King's Indian: Fianchetto: 6...Nbd7 7 0-0 e5 8 e4 c6 9 h3} (11... cxd5 12. cxd5 Nc5 13. Rb1 a5 14. Be3 Bd7 15. Nd2 Rec8 16. Qe2 Qd8 17. Rec1 Ne8 18. b3 h5 19. a3 h4 20. g4 Bf6 21. Nf3 Be7 22. b4 axb4 23. axb4 {½-½ (79) Alekseev,E (2636)-Goganov,A (2635) St Petersburg 2016}) 12. Qc2 {[%emt 0:05:00]} Bd7 {[%emt 0:02:08]} 13. Be3 {[%emt 0:00:38]} cxd5 {[%emt 0:01:39]} 14. cxd5 {[%emt 0:04:35]} Rac8 $146 {[%emt 0:02:56]} ({Predecessor:} 14... Rec8 15. Rac1 Ne8 16. Qb1 a5 17. Nd2 a4 18. b4 axb3 19. Nxb3 Qa7 20. Bf1 b6 {1-0 (48) Raja,R (2241)-Mahmud,S (2216) Puchong 2017}) 15. Nd2 {[%emt 0:07:27]} Qc7 {[%emt 0:14:32]} 16. Rac1 {[%emt 0:02:24]} (16. a4 $16) 16... b5 {[%emt 0:01:08]} 17. b4 {[%emt 0:12:28]} Na4 {[%emt 0:03:30]} 18. Ndb1 {[%emt 0:00:51]} Qb7 {[%emt 0:03:12]} 19. Qb3 {[%emt 0:02:03]} Nb6 {[%emt 0:00:56]} 20. Nd2 {[%emt 0:00:47]} Rc7 {[%emt 0:03:07]} 21. Bf1 {[%emt 0:03:40]} Rec8 {[%emt 0:02:33]} 22. Qb2 {[%emt 0:00:53]} a6 {[%emt 0:06:05]} (22... Ne8 $11 23. Ne2 (23. Nxb5 $2 Na4 $19) 23... f5) 23. a3 {[%emt 0:01:06]} Bf8 {[%emt 0:05:35]} 24. Kg2 {[%emt 0:04:05]} Rxc3 {[%emt 0:01:42]} 25. Rxc3 {[%emt 0:00:14]} Na4 {[%emt 0:00:12]} 26. Rxc8 {[%emt 0:03:22]} Nxb2 {[%emt 0:00:17]} 27. Rc2 {[%emt 0:00:28]} Na4 {[%emt 0:01:14]} 28. Rec1 {[%emt 0:00:50]} Ne8 {[%emt 0:12:43]} 29. Nb3 {[%emt 0:01:36]} h5 {[%emt 0:07:48]} 30. Na5 {[%emt 0:00:28]} Qa8 {[%emt 0:00:04]} 31. Be2 {[%emt 0:04:11]} Kh7 {[%emt 0:01:48]} 32. g4 {[%emt 0:00:16]} f5 {[%emt 0:06:52]} 33. gxf5 {[%emt 0:05:27]} gxf5 {[%emt 0:00:28]} 34. Bxh5 {[%emt 0:02:21]} fxe4 {[%emt 0:02:57]} 35. Bxe8 {[%emt 0:00:26]} Qxe8 {[%emt 0:00:19]} 36. Rc7 {[%emt 0:01:38]} Bh6 {[%emt 0:01:14]} 37. Rb7 {[%emt 0:05:41]} Bxe3 {[%emt 0:08:34]} 38. fxe3 {[%emt 0:00:02]} Kh6 {[%emt 0:01:58]} 39. Rcc7 {[%emt 0:01:12]} Bf5 {[%emt 0:00:09]} 40. Rf7 {[%emt 0:00:00]} Qg8+ {[%emt 0:01:45]} 41. Kh2 {[%emt 0:02:22]} Bg6 {[%emt 0:01:47]} 42. Rf6 {[%emt 0:03:15]} Qxd5 {[%emt 0:00:50]} 43. Rd7 {[%emt 0:00:33]} Qd2+ {[%emt 0:02:34]} 44. Kh1 {[%emt 0:00:02]} Qe1+ {[%emt 0:02:19]} 45. Kh2 {[%emt 0:02:49]} Kg5 {[%emt 0:02:43]} 46. Rfxd6 {[%emt 0:04:44]} Qf2+ {[%emt 0:02:16]} 47. Kh1 {[%emt 0:00:04]} Kh5 {[%emt 0:11:12]} 48. Rd8 {[%emt 0:02:59]} Qf7 {[%emt 0:07:27]} 49. Nc6 {[%emt 0:04:35]} Qf1+ {[%emt 0:01:08]} 50. Kh2 {[%emt 0:00:00]} Qf2+ {[%emt 0:00:03]} 51. Kh1 {[%emt 0:00:04]} Qxe3 {[%emt 0:00:23]} 52. Rh8+ {[%emt 0:02:11]} Kg5 {[%emt 0:00:01]} 53. h4+ {[%emt 0:01:04]} Kf4 {[%emt 0:02:30]} 54. Rxg6 {[%emt 0:02:48]} Qc1+ {[%emt 0:00:33]} 55. Kg2 {[%emt 0:01:56]} e3 {[%emt 0:00:12]} 56. Rf8+ {[%emt 0:01:27]} Ke4 {[%emt 0:00:07]} 57. Re8 {[%emt 0:02:43]} Qb2+ {[%emt 0:00:31]} 58. Kh3 {[%emt 0:04:38]} e2 {[%emt 0:01:34]} 59. Rge6 {[%emt 0:00:20]} Qc3+ {[%emt 0:02:18]} 60. Kg4 {[%emt 0:06:06]} Qxc6 {[%emt 0:02:41]} 61. Rxe5+ {[%emt 0:00:58]} Kd3 {[%emt 0:01:37]} 62. Re3+ {[%emt 0:00:18]} Kd4 {[%emt 0:00:21]} 63. Rxe2 {[%emt 0:00:02]} Nc3 {[%emt 0:00:42]} 64. R8e6 {[%emt 0:03:01]} Qc8 {[%emt 0:01:04]} 65. Rd2+ {[%emt 0:02:32]} Kc4 {[%emt 0:00:05]} 66. Rdd6 {[%emt 0:00:15]} Qg8+ {[%emt 0:00:36]} 67. Rg6 {[%emt 0:00:42]} Qc8+ {[%emt 0:00:02]} 68. Rge6 {[%emt 0:02:41]} Kb3 {[%emt 0:00:10]} 69. Rxa6 {[%emt 0:01:10]} Na4 {[%emt 0:00:10]} 70. Rac6 {[%emt 0:00:39]} Qd7 {[%emt 0:00:10]} 71. Rcd6 {[%emt 0:01:10] [#]} Qg7+ $1 {[%emt 0:01:07]} 72. Rg6 {[%emt 0:00:41]} Qb7 {[%emt 0:00:20]} 73. Rd3+ {[%emt 0:01:35]} Nc3 {[%emt 0:00:03]} 74. Rgd6 {[%emt 0:04:47]} Qc8+ {[%emt 0:00:10]} 75. Kg5 {[%emt 0:00:40]} Kxa3 {[%emt 0:00:07]} 76. h5 {[%emt 0:00:25]} Kxb4 {[%emt 0:00:08]} 77. R6d4+ $19 {[%emt 0:01:32]} Ka5 {[%emt 0:01:13]} 78. h6 {[%emt 0:00:37]} Qg8+ {[%emt 0:00:15]} 79. Kf6 {[%emt 0:02:20]} Qh8+ {[%emt 0:00:08]} 80. Kg6 {[%emt 0:00:10]} Qg8+ {[%emt 0:00:05]} 81. Kf6 {[%emt 0:00:06]} Qh7 {[%emt 0:00:20]} 82. Kg5 {[%emt 0:01:56]} Ne4+ {[%emt 0:00:48]} 83. Kf4 {[%emt 0:01:32]} Nc5 {[%emt 0:00:36]} 84. Ra3+ {[%emt 0:00:35]} Kb6 {[%emt 0:00:17]} 85. Rd6+ {[%emt 0:02:17]} Kb7 {[%emt 0:00:08]} 86. Re3 {[%emt 0:02:45]} Kc7 {[%emt 0:01:18]} 87. Rf6 {[%emt 0:00:21]} Nd7 {[%emt 0:00:35]} 88. Rfe6 {[%emt 0:02:15]} Qf7+ {[%emt 0:00:21]} 89. Kg5 {[%emt 0:00:22]} b4 {[%emt 0:00:22]} 90. Re7 {[%emt 0:02:07]} Qf6+ {[%emt 0:00:05]} 91. Kh5 {[%emt 0:00:01]} Qf5+ {[%emt 0:00:18]} 92. Kh4 {[%emt 0:00:05]} Qf4+ {[%emt 0:00:42]} 93. Kh5 {[%emt 0:00:01]} Qf5+ {[%emt 0:01:03]} 94. Kh4 {[%emt 0:00:03]} Qf6+ {[%emt 0:01:26]} 95. Kh5 {[%emt 0:00:55]} b3 {[%emt 0:00:54]} 96. R7e6 {[%emt 0:04:08]} Qf5+ {[%emt 0:00:06]} 97. Kh4 {[%emt 0:00:07]} b2 {[%emt 0:00:25]} 98. Rc3+ {[%emt 0:01:40]} Kd8 {[%emt 0:00:07]} 99. h7 {[%emt 0:00:29]} Qxh7+ {[%emt 0:00:06]} 0-1